fUST/lending_fUST_20250607
["ID","MTS","AMOUNT","RATE_DAILY","PERIOD"]
[364797207,1749245436589,-430.0,0.00019178,2]
[364797208,1749245436599,-440.0,0.00019178,2]
[364797209,1749245436609,-440.0,0.00019178,2]
[364797210,1749245436619,-458.85883292,0.00019178,2]
[364797211,1749245436629,-440.0,0.00019178,2]
[364797212,1749245436639,-430.0,0.00019178,2]
[364797213,1749245436649,-430.0,0.00019178,2]
[364797214,1749245436660,-440.0,0.00019178,2]
[364797215,1749245436670,-430.0,0.00019178,2]
[364797216,1749245436679,-440.0,0.00019178,2]
[364797217,1749245436689,-440.0,0.00019178,2]
[364797218,1749245436700,-430.0,0.00019178,2]
[364797219,1749245436710,-440.0,0.00019178,2]
[364797220,1749245436721,-440.0,0.00019178,2]
[364797221,1749245436731,-440.0,0.00019178,2]
[364797222,1749245436741,-235.62116323,0.00019178,2]
[364797223,1749245436751,-440.0,0.00019178,2]
[364797224,1749245436761,-440.0,0.00019178,2]
[364797225,1749245436771,-440.0,0.00019178,2]
[364797226,1749245436781,-300.0,0.00019178,2]
[364797227,1749245436791,-440.0,0.00019178,2]
[364797228,1749245436801,-430.0,0.00019178,2]
[364797229,1749245436811,-440.0,0.00019178,2]
[364797230,1749245436820,-430.0,0.00019178,2]
[364797231,1749245436830,-452.04537542,0.00019178,2]
[364797232,1749245436839,-440.0,0.00019178,2]
[364797233,1749245436850,-430.0,0.00019178,2]
[364797234,1749245436860,-455.36386898,0.00019178,2]
[364797235,1749245436869,-440.0,0.00019178,2]
[364797236,1749245436879,-422.36409094,0.00019178,2]
[364797237,1749245436888,-440.0,0.00019178,2]
[364797238,1749245436898,-440.0,0.00019178,2]
[364797239,1749245436908,-440.0,0.00019178,2]
[364797240,1749245436918,-440.0,0.00019178,2]
[364797241,1749245436927,-450.0,0.00019178,2]
[364797242,1749245436937,-401.38863642,0.00019178,2]
[364797243,1749245436947,-440.0,0.00019178,2]
[364797244,1749245436956,-440.0,0.00019178,2]
[364797245,1749245436966,-440.0,0.00019178,2]
[364797246,1749245436975,-440.0,0.00019178,2]
[364797247,1749245436985,-440.0,0.00019178,2]
[364797248,1749245436995,-430.0,0.00019178,2]
[364797249,1749245437008,-440.0,0.00019178,2]
[364797250,1749245437017,-440.0,0.00019178,2]
[364797251,1749245437027,-440.0,0.00019178,2]
[364797252,1749245437036,-440.0,0.00019178,2]
[364797253,1749245437046,-440.0,0.00019178,2]
[364797254,1749245437056,-440.0,0.00019178,2]
[364797255,1749245437066,-440.0,0.00019178,2]
[364797256,1749245437075,-649.28,0.00019178,2]
[364797257,1749245437086,-440.0,0.00019178,2]
[364797258,1749245437096,-440.0,0.00019178,2]
[364797259,1749245437237,-440.0,0.00019178,2]
[364797260,1749245437249,-440.0,0.00019178,2]
[364797261,1749245437259,-450.0,0.00019178,2]
[364797262,1749245437268,-440.0,0.00019178,2]
[364797263,1749245437278,-440.0,0.00019178,2]
[364797264,1749245437288,-440.0,0.00019178,2]
[364797265,1749245437298,-440.0,0.00019178,2]
[364797266,1749245437308,-440.0,0.00019178,2]
[364797267,1749245437317,-440.0,0.00019178,2]
[364797268,1749245437327,-440.0,0.00019178,2]
[364797269,1749245437336,-440.0,0.00019178,2]
[364797270,1749245437346,-440.0,0.00019178,2]
[364797271,1749245437356,-440.0,0.00019178,2]
[364797272,1749245437365,-450.0,0.00019178,2]
[364797273,1749245437377,-400.0,0.00019178,2]
[364797274,1749245437386,-440.0,0.00019178,2]
[364797275,1749245437396,-440.0,0.00019178,2]
[364797276,1749245437406,-400.0,0.00019178,2]
[364797277,1749245437415,-250.0,0.00019178,2]
[364797278,1749245437424,-440.0,0.00019178,2]
[364797279,1749245437434,-440.0,0.00019178,2]
[364797280,1749245437444,-440.0,0.00019178,2]
[364797281,1749245437454,-440.0,0.00019178,2]
[364797282,1749245437463,-440.0,0.00019178,2]
[364797283,1749245437473,-440.0,0.00019178,2]
[364797284,1749245437483,-1000.0,0.00019178,2]
[364797285,1749245437492,-450.0,0.00019178,2]
[364797286,1749245437502,-327.33540601,0.00019178,2]
[364797287,1749245437511,-440.0,0.00019178,2]
[364797288,1749245437520,-450.0,0.00019178,2]
[364797289,1749245437529,-450.0,0.00019178,2]
[364797290,1749245437539,-450.0,0.00019178,2]
[364797291,1749245437548,-274.09835669,0.00019178,2]
[364797292,1749245437557,-440.0,0.00019178,2]
[364797293,1749245437566,-430.0,0.00019178,2]
[364797294,1749245437575,-400.0,0.00019178,2]
[364797295,1749245437585,-440.0,0.00019178,2]
[364797296,1749245437594,-207.65,0.00019178,2]
[364797297,1749245437603,-450.0,0.00019178,2]
[364797298,1749245437612,-440.0,0.00019178,2]
[364797299,1749245437622,-450.0,0.00019178,2]
[364797300,1749245437631,-440.0,0.00019178,2]
[364797301,1749245437640,-440.0,0.00019178,2]
[364797302,1749245437649,-440.0,0.00019178,2]
[364797303,1749245437659,-430.37460815,0.00019178,2]
[364797304,1749245437669,-440.0,0.00019178,2]
[364797305,1749245437678,-440.0,0.00019178,2]
[364797306,1749245437688,-440.0,0.00019178,2]
[364797307,1749245437697,-440.0,0.00019178,2]
[364797308,1749245437709,-463.76,0.00019178,2]
[364797309,1749245437719,-440.0,0.00019178,2]
[364797310,1749245437729,-332.72611491,0.00019178,2]
[364797311,1749245437738,-440.0,0.00019178,2]
[364797312,1749245437748,-440.0,0.00019178,2]
[364797313,1749245437757,-440.0,0.00019178,2]
[364797314,1749245437766,-440.0,0.00019178,2]
[364797315,1749245437778,-440.0,0.00019178,2]
[364797316,1749245437787,-440.0,0.00019178,2]
[364797317,1749245437797,-440.0,0.00019178,2]
[364797318,1749245437806,-440.0,0.00019178,2]
[364797319,1749245437815,-440.0,0.00019178,2]
[364797320,1749245437825,-440.0,0.00019178,2]
[364797321,1749245437834,-440.0,0.00019178,2]
[364797322,1749245437843,-440.0,0.00019178,2]
[364797323,1749245437852,-440.0,0.00019178,2]
[364797324,1749245437862,-440.0,0.00019178,2]
[364797325,1749245437871,-440.0,0.00019178,2]
[364797326,1749245437881,-440.0,0.00019178,2]
[364797327,1749245437890,-440.0,0.00019178,2]
[364797328,1749245437899,-440.0,0.00019178,2]
[364797329,1749245437908,-440.0,0.00019178,2]
[364797330,1749245437918,-440.0,0.00019178,2]
[364797331,1749245437927,-440.0,0.00019178,2]
[364797332,1749245437937,-430.0,0.00019178,2]
[364797333,1749245437946,-440.0,0.00019178,2]
[364797334,1749245437955,-430.0,0.00019178,2]
[364797335,1749245437965,-440.0,0.00019178,2]
[364797336,1749245437974,-440.0,0.00019178,2]
[364797337,1749245437984,-440.0,0.00019178,2]
[364797338,1749245437993,-420.0,0.00019178,2]
[364797339,1749245438003,-440.0,0.00019178,2]
[364797340,1749245438015,-457.65,0.00019178,2]
[364797341,1749245438024,-430.0,0.00019178,2]
[364797342,1749245438034,-440.0,0.00019178,2]
[364797343,1749245438043,-440.0,0.00019178,2]
[364797344,1749245438054,-440.0,0.00019178,2]
[364797346,1749245438064,-440.0,0.00019178,2]
[364797347,1749245438073,-320.98921431,0.00019178,2]
[364797348,1749245438084,-440.0,0.00019178,2]
[364797349,1749245438093,-440.0,0.00019178,2]
[364797350,1749245438103,-440.0,0.00019178,2]
[364797351,1749245438113,-440.0,0.00019178,2]
[364797353,1749245438123,-301.57254614,0.00019178,2]
[364797354,1749245438137,-440.0,0.00019178,2]
[364797355,1749245438150,-585.6,0.00019178,2]
[364797356,1749245438160,-440.0,0.00019178,2]
[364797357,1749245438170,-460.0,0.00019178,2]
[364797358,1749245438179,-315.53511976,0.00019178,2]
[364797359,1749245438189,-424.96500573,0.00019178,2]
[364797360,1749245438199,-440.0,0.00019178,2]
[364797361,1749245438208,-440.0,0.00019178,2]
[364797362,1749245438219,-440.0,0.00019178,2]
[364797364,1749245438235,-470.0,0.00019178,2]
[364797367,1749245438245,-440.0,0.00019178,2]
[364797370,1749245438254,-183.230153,0.00019178,2]
[364797372,1749245438263,-500.0,0.00019372,2]
[364797375,1749245438273,-440.0,0.00019452,2]
[364797377,1749245438283,-440.0,0.00019452,2]
[364797379,1749245438293,-440.0,0.00019452,2]
[364797381,1749245438302,-440.0,0.00019452,2]
[364797384,1749245438312,-440.0,0.00019452,2]
[364797387,1749245438322,-440.0,0.00019452,2]
[364797390,1749245438333,-440.0,0.00019452,2]
[364797392,1749245438343,-440.0,0.00019452,2]
[364797394,1749245438354,-313.05217977,0.00019452,2]
[364797396,1749245438365,-440.0,0.00019452,2]
[364797399,1749245438374,-440.0,0.00019452,2]
[364797402,1749245438384,-440.0,0.00019452,2]
[364797405,1749245438394,-440.0,0.00019452,2]
[364797408,1749245438403,-440.0,0.00019452,2]
[364797411,1749245438412,-540.0,0.00019452,2]
[364797414,1749245438421,-460.0,0.00019452,2]
[364797417,1749245438431,-440.0,0.00019452,2]
[364797420,1749245438440,-440.0,0.00019452,2]
[364797423,1749245438449,-266.52594672,0.00019452,2]
[364797426,1749245438460,-440.0,0.00019452,2]
[364797429,1749245438469,-440.0,0.00019452,2]
[364797432,1749245438478,-440.0,0.00019452,2]
[364797435,1749245438487,-440.0,0.00019452,2]
[364797438,1749245438497,-440.0,0.00019452,2]
[364797441,1749245438506,-440.0,0.00019452,2]
[364797444,1749245438515,-440.0,0.00019452,2]
[364797446,1749245438524,-420.0,0.00019452,2]
[364797448,1749245438534,-440.0,0.00019452,2]
[364797450,1749245438543,-420.0,0.00019452,2]
[364797452,1749245438552,-440.0,0.00019452,2]
[364797454,1749245438561,-480.0,0.00019452,2]
[364797456,1749245438572,-460.0,0.00019452,2]
[364797458,1749245438581,-450.0,0.00019452,2]
[364797460,1749245438590,-440.0,0.00019452,2]
[364797462,1749245438599,-440.0,0.00019452,2]
[364797464,1749245438608,-440.0,0.00019452,2]
[364797466,1749245438617,-420.0,0.00019452,2]
[364797468,1749245438625,-440.0,0.00019452,2]
[364797470,1749245438635,-440.0,0.00019452,2]
[364797472,1749245438644,-440.0,0.00019452,2]
[364797474,1749245438653,-370.0,0.00019452,2]
[364797476,1749245438662,-440.0,0.00019452,2]
[364797478,1749245438671,-440.0,0.00019452,2]
[364797480,1749245438680,-440.0,0.00019452,2]
[364797482,1749245438690,-390.0,0.00019452,2]
[364797484,1749245438699,-440.0,0.00019452,2]
[364797486,1749245438709,-440.0,0.00019452,2]
[364797488,1749245438718,-308.73646605,0.00019452,2]
[364797490,1749245438728,-558.39,0.00019452,2]
[364797492,1749245438737,-440.0,0.00019452,2]
[364797494,1749245438746,-270.21,0.00019452,2]
[364797496,1749245438756,-743.65,0.00019452,2]
[364797498,1749245438765,-440.0,0.00019452,2]
[364797500,1749245438774,-440.0,0.00019452,2]
[364797502,1749245438783,-440.0,0.00019452,2]
[364797504,1749245438792,-440.0,0.00019452,2]
[364797506,1749245438801,-440.0,0.00019452,2]
[364797508,1749245438810,-440.0,0.00019452,2]
[364797511,1749245438819,-440.0,0.00019452,2]
[364797513,1749245438829,-440.0,0.00019452,2]
[364797515,1749245438838,-440.0,0.00019452,2]
[364797517,1749245438848,-440.0,0.00019452,2]
[364797519,1749245438857,-440.0,0.00019452,2]
[364797521,1749245438866,-440.0,0.00019452,2]
[364797523,1749245438875,-440.0,0.00019452,2]
[364797525,1749245438884,-440.0,0.00019452,2]
[364797527,1749245438894,-440.0,0.00019452,2]
[364797529,1749245438903,-440.0,0.00019452,2]
[364797531,1749245438912,-440.0,0.00019452,2]
[364797533,1749245438921,-440.0,0.00019452,2]
[364797535,1749245438930,-440.0,0.00019452,2]
[364797537,1749245438940,-420.0,0.00019452,2]
[364797539,1749245438950,-479.89200613,0.00019452,2]
[364797541,1749245438959,-430.0,0.00019452,2]
[364797543,1749245438968,-420.0,0.00019452,2]
[364797546,1749245438979,-440.0,0.00019452,2]
[364797547,1749245438988,-649.28,0.00019452,2]
[364797550,1749245438998,-440.0,0.00019452,2]
[364797552,1749245439010,-440.0,0.00019452,2]
[364797554,1749245439019,-440.0,0.00019452,2]
[364797556,1749245439028,-440.0,0.00019452,2]
[364797558,1749245439037,-460.0,0.00019452,2]
[364797560,1749245439047,-420.0,0.00019452,2]
[364797562,1749245439056,-440.0,0.00019452,2]
[364797564,1749245439065,-440.0,0.00019452,2]
[364797566,1749245439074,-440.0,0.00019452,2]
[364797568,1749245439084,-440.0,0.00019452,2]
[364797570,1749245439094,-440.0,0.00019452,2]
[364797572,1749245439104,-440.0,0.00019452,2]
[364797574,1749245439114,-440.0,0.00019452,2]
[364797576,1749245439124,-440.0,0.00019452,2]
[364797578,1749245439134,-440.0,0.00019452,2]
[364797580,1749245439144,-440.0,0.00019452,2]
[364797582,1749245439154,-440.0,0.00019452,2]
[364797584,1749245439163,-440.0,0.00019452,2]
[364797586,1749245439172,-1140.85627546,0.00019452,2]
[364797588,1749245439182,-440.0,0.00019452,2]
[364797590,1749245439191,-440.0,0.00019452,2]
[364797592,1749245439200,-440.0,0.00019452,2]
[364797594,1749245439210,-440.0,0.00019452,2]
[364797596,1749245439219,-410.0,0.00019452,2]
[364797598,1749245439229,-440.0,0.00019452,2]
[364797600,1749245439239,-460.0,0.00019452,2]
[364797602,1749245439249,-440.0,0.00019452,2]
[364797604,1749245439259,-440.0,0.00019452,2]
[364797606,1749245439269,-432.06314082,0.00019452,2]
[364797608,1749245439279,-440.0,0.00019452,2]
[364797610,1749245439288,-463.76,0.00019452,2]
[364797612,1749245439297,-440.0,0.00019452,2]
[364797614,1749245439307,-440.0,0.00019452,2]
[364797616,1749245439316,-440.0,0.00019452,2]
[364797618,1749245439326,-440.0,0.00019452,2]
[364797621,1749245439335,-440.0,0.00019452,2]
[364797624,1749245439346,-440.0,0.00019452,2]
[364797626,1749245439355,-440.0,0.00019452,2]
[364797627,1749245439365,-440.0,0.00019452,2]
[364797628,1749245439374,-440.0,0.00019452,2]
[364797629,1749245439384,-322.28529561,0.00019452,2]
[364797630,1749245439393,-440.0,0.00019452,2]
[364797631,1749245439403,-508.07271145,0.00019452,2]
[364797632,1749245439412,-150.53613233,0.00019452,2]
[364797633,1749245439421,-440.0,0.00019452,2]
[364797634,1749245439431,-440.0,0.00019452,2]
[364797635,1749245439441,-457.65,0.00019452,2]
[364797636,1749245439450,-440.0,0.00019452,2]
[364797637,1749245439459,-440.0,0.00019452,2]
[364797638,1749245439468,-218.16306545,0.00019452,2]
[364797639,1749245439478,-440.0,0.00019452,2]
[364797641,1749245439487,-180.0,0.00019452,2]
[364797643,1749245439497,-585.6,0.00019452,2]
[364797645,1749245439507,-440.0,0.00019452,2]
[364797647,1749245439516,-440.0,0.00019452,2]
[364797649,1749245439525,-500.0,0.00019474,2]
[364797651,1749245439535,-150.0,0.00019644,2]
[364797653,1749245439544,-170.32158357,0.00019726,2]
[364797655,1749245439553,-235.87900172,0.00019726,2]
[364797657,1749245439563,-560.0,0.00019726,2]
[364797659,1749245439577,-558.39,0.00019726,2]
[364797661,1749245439596,-440.0,0.00019726,2]
[364797663,1749245439605,-743.65,0.00019726,2]
[364797665,1749245439615,-440.0,0.00019726,2]
[364797667,1749245439624,-440.0,0.00019726,2]
[364797669,1749245439633,-440.0,0.00019726,2]
[364797671,1749245439642,-440.0,0.00019726,2]
[364797673,1749245439652,-440.0,0.00019726,2]
[364797675,1749245439661,-320.0,0.00019726,2]
[364797677,1749245439671,-440.0,0.00019726,2]
[364797679,1749245439681,-440.0,0.00019726,2]
[364797681,1749245439697,-440.0,0.00019726,2]
[364797683,1749245439712,-649.28,0.00019726,2]
[364797685,1749245439722,-440.0,0.00019726,2]
[364797687,1749245439733,-440.0,0.00019726,2]
[364797689,1749245439743,-440.0,0.00019726,2]
[364797691,1749245439753,-440.0,0.00019726,2]
[364797693,1749245439762,-583.37,0.00019726,2]
[364797695,1749245439772,-463.76,0.00019726,2]
[364797697,1749245439781,-419.08,0.00019726,2]
[364797699,1749245439791,-440.0,0.00019726,2]
[364797701,1749245439801,-471.68,0.00019726,2]
[364797703,1749245439810,-457.65,0.00019726,2]
[364797705,1749245439819,-440.0,0.00019726,2]
[364797707,1749245439829,-585.6,0.00019726,2]
[364797709,1749245439838,-440.0,0.00019726,2]
[364797711,1749245439848,-155.34958875,0.00019844,2]
[364797713,1749245439858,-226.73577192,0.000199,2]
[364797715,1749245439867,-15863.95311695,0.0002,2]
[364797717,1749245439877,-5335.28378917,0.0002,2]
[364797844,1749245440915,-440.0,0.00019726,2]
[364797846,1749245440925,-156.34713937,0.0002,2]
[364797854,1749245440986,-16040.20906451,0.0002,2]
[364798436,1749245446724,-300.0,0.00019999,2]
[364798437,1749245446734,-754.54,0.0002,2]
[364798486,1749245447236,-725.27306679,0.0002,2]
[364801669,1749245484204,497.0022997,0.00018894,2]
[364801670,1749245525541,1170.41046025,0.000189,2]
[364801671,1749245567406,5000.0,0.00018484,2]
[364801672,1749245575495,169.0,0.00016438,3]
[364801673,1749245578362,466.78632,0.00018762,2]
[364801674,1749245581749,187.22439809,0.00018603,2]
[364801675,1749245583610,4452.29060176,0.00018851,2]
[364801676,1749245583634,5547.70939814,0.00018851,2]
[364801677,1749245584034,3255.9189592,0.00018762,2]
[364801679,1749245607776,10215.02544266,0.00018851,2]
[364801680,1749245607798,8803.62835734,0.00018851,2]
[364801686,1749245826776,780.27364016,0.000189,2]
[364801688,1749245888646,172.0,0.00016438,3]
[364801689,1749245892437,9262.7518025,0.00018786,2]
[364801690,1749245892461,1175.2195095,0.00018786,2]
[364801694,1749246128086,520.18242678,0.000189,2]
[364801696,1749246183778,180.43461766,0.00018603,2]
[364801697,1749246193016,17142.81724606,0.0001836,2]
[364801698,1749246193039,7757.18275394,0.0001836,2]
[364801699,1749246202283,155.0,0.00016438,3]
[364801710,1749246291448,5000.0,0.00018484,2]
[364801716,1749246368686,168.8520615,0.00018392,2]
[364801718,1749246387937,367.370286,0.00013699,2]
[364801719,1749246429567,1172.82276732,0.000189,2]
[364801720,1749246439123,-157.69521078,0.00019075,3]
[364801721,1749246439159,-168.19204084,0.00019075,2]
[364801722,1749246439183,-158.66329503,0.00019078,2]
[364801723,1749246439207,-300.0,0.00019174,2]
[364801724,1749246439230,-300.0,0.00019175,2]
[364801725,1749246439252,-1200.0,0.00019175,2]
[364801726,1749246439276,-300.0,0.00019175,2]
[364801727,1749246439301,-500.0,0.00019175,2]
[364801728,1749246439323,-217.62625734,0.00019175,2]
[364801729,1749246439349,-500.0,0.00019175,2]
[364801730,1749246439373,-500.0,0.00019175,2]
[364801731,1749246439397,-348.30871761,0.00019175,2]
[364801732,1749246444095,-151.69128239,0.00019175,2]
[364801733,1749246444120,-500.0,0.00019175,2]
[364801734,1749246444143,-500.0,0.00019175,2]
[364801735,1749246444165,-500.0,0.00019175,2]
[364801736,1749246444188,-500.0,0.00019175,2]
[364801737,1749246444209,-400.15226443,0.00019175,2]
[364801738,1749246444232,-500.0,0.00019175,2]
[364801739,1749246444254,-500.0,0.00019175,2]
[364801740,1749246444276,-194.85775169,0.00019175,2]
[364801741,1749246485010,256.52977059,0.00018603,2]
[364801743,1749246620607,4140.89616065,0.00018246,2]
[364801744,1749246620631,931.06394621,0.00018246,2]
[364801746,1749246631871,-844.76062011,0.00018246,2]
[364801747,1749246631883,-254.87,0.00018246,2]
[364801748,1749246631895,-3828.40927303,0.00018246,2]
[364801749,1749246631905,-156.587,0.00019166,2]
[364801750,1749246631914,-300.0,0.00019175,2]
[364801752,1749246631923,-500.0,0.00019176,2]
[364801754,1749246631933,-522.22942023,0.00019176,2]
[364801755,1749246631942,-500.0,0.00019176,2]
[364801756,1749246631951,-500.0,0.00019176,2]
[364801757,1749246631961,-500.0,0.00019176,2]
[364801758,1749246631971,-500.0,0.00019176,2]
[364801759,1749246631980,-500.0,0.00019176,2]
[364801760,1749246631989,-500.0,0.00019176,2]
[364801762,1749246631999,-500.0,0.00019176,2]
[364801764,1749246632009,-500.0,0.00019176,2]
[364801766,1749246632018,-500.0,0.00019176,2]
[364801768,1749246632028,-500.0,0.00019176,2]
[364801770,1749246632037,-500.0,0.00019176,2]
[364801772,1749246632046,-500.0,0.00019176,2]
[364801774,1749246632056,-500.0,0.00019176,2]
[364801776,1749246632065,-500.0,0.00019176,2]
[364801778,1749246632074,-500.0,0.00019176,2]
[364801780,1749246632084,-500.0,0.00019176,2]
[364801782,1749246632093,-500.0,0.00019176,2]
[364801784,1749246632102,-500.0,0.00019176,2]
[364801786,1749246632111,-500.0,0.00019176,2]
[364801788,1749246632120,-485.43607485,0.00019176,2]
[364801790,1749246632130,-500.0,0.00019176,2]
[364801793,1749246632139,-500.0,0.00019176,2]
[364801795,1749246632148,-500.0,0.00019176,2]
[364801797,1749246632157,-500.0,0.00019176,2]
[364801800,1749246632168,-500.0,0.00019176,2]
[364801802,1749246632178,-500.0,0.00019176,2]
[364801804,1749246632187,-500.0,0.00019176,2]
[364801806,1749246632196,-500.0,0.00019176,2]
[364801808,1749246632205,-500.0,0.00019176,2]
[364801810,1749246632215,-500.0,0.00019176,2]
[364801812,1749246632224,-500.0,0.00019176,2]
[364801814,1749246632234,-500.0,0.00019176,2]
[364801816,1749246632243,-500.0,0.00019176,2]
[364801818,1749246632252,-500.0,0.00019176,2]
[364801820,1749246632262,-500.0,0.00019176,2]
[364801822,1749246632272,-500.0,0.00019176,2]
[364801824,1749246632281,-500.0,0.00019176,2]
[364801826,1749246632291,-500.0,0.00019176,2]
[364801828,1749246632301,-500.0,0.00019176,2]
[364801830,1749246632310,-500.0,0.00019176,2]
[364801832,1749246632320,-500.0,0.00019176,2]
[364801834,1749246632329,-2.90758198,0.00019176,2]
[364801837,1749246632341,-548.29331262,0.00019176,2]
[364801839,1749246632351,-500.0,0.00019176,2]
[364801841,1749246632360,-500.0,0.00019176,2]
[364801843,1749246632370,-500.0,0.00019176,2]
[364801845,1749246632380,-500.0,0.00019176,2]
[364801847,1749246632390,-500.0,0.00019176,2]
[364801849,1749246632400,-500.0,0.00019176,2]
[364801851,1749246632410,-500.0,0.00019176,2]
[364801853,1749246632419,-500.0,0.00019176,2]
[364801855,1749246632428,-160.0,0.00019177,2]
[364801857,1749246632438,-500.0,0.00019177,2]
[364801859,1749246632448,-445.6960572,0.00019177,2]
[364801861,1749246632457,-500.0,0.00019177,2]
[364801863,1749246632466,-440.0,0.00019178,2]
[364801865,1749246632476,-440.0,0.00019178,2]
[364801867,1749246632486,-490.0,0.00019178,2]
[364801869,1749246632496,-440.0,0.00019178,2]
[364801871,1749246632506,-260.0,0.00019178,2]
[364801873,1749246632516,-470.0,0.00019178,2]
[364801875,1749246632526,-440.0,0.00019178,2]
[364801877,1749246632536,-440.0,0.00019178,2]
[364801879,1749246632546,-430.0,0.00019178,2]
[364801881,1749246632555,-440.0,0.00019178,2]
[364801883,1749246632567,-430.0,0.00019178,2]
[364801885,1749246632578,-440.0,0.00019178,2]
[364801887,1749246632588,-440.0,0.00019178,2]
[364801889,1749246632598,-440.0,0.00019178,2]
[364801890,1749246632607,-210.0,0.00019178,2]
[364801891,1749246632618,-470.0,0.00019178,2]
[364801892,1749246632628,-210.0,0.00019178,2]
[364801893,1749246632638,-564.19115529,0.00019178,2]
[364801895,1749246632648,-440.0,0.00019178,2]
[364801898,1749246632658,-440.0,0.00019178,2]
[364801901,1749246632670,-440.0,0.00019178,2]
[364801904,1749246632680,-440.0,0.00019178,2]
[364801907,1749246632689,-430.84860009,0.00019178,2]
[364801909,1749246632699,-440.0,0.00019178,2]
[364801911,1749246632709,-450.0,0.00019178,2]
[364801913,1749246632718,-440.0,0.00019178,2]
[364801915,1749246632728,-440.0,0.00019178,2]
[364801917,1749246632738,-430.0,0.00019178,2]
[364801919,1749246632747,-440.0,0.00019178,2]
[364801921,1749246632756,-470.0,0.00019178,2]
[364801923,1749246632766,-453.96190085,0.00019178,2]
[364801925,1749246632775,-440.0,0.00019178,2]
[364801927,1749246632784,-440.0,0.00019178,2]
[364801929,1749246632793,-440.0,0.00019178,2]
[364801931,1749246632802,-440.0,0.00019178,2]
[364801934,1749246632811,-470.0,0.00019178,2]
[364801935,1749246632821,-430.0,0.00019178,2]
[364801938,1749246632830,-359.40216688,0.00019178,2]
[364801940,1749246632840,-420.84348022,0.00019178,2]
[364801942,1749246632849,-440.0,0.00019178,2]
[364801943,1749246632858,-440.0,0.00019178,2]
[364801946,1749246632868,-450.0,0.00019178,2]
[364801948,1749246632877,-453.09,0.00019178,2]
[364801950,1749246632886,-440.0,0.00019178,2]
[364801952,1749246632896,-440.0,0.00019178,2]
[364801954,1749246632905,-440.0,0.00019178,2]
[364801956,1749246632915,-440.0,0.00019178,2]
[364801958,1749246632924,-440.0,0.00019178,2]
[364801960,1749246632933,-458.56347625,0.00019178,2]
[364801962,1749246632942,-440.0,0.00019178,2]
[364801964,1749246632951,-566.63171816,0.00019178,2]
[364801966,1749246632960,-194.69766809,0.00019178,2]
[364801969,1749246632982,-345.9024181,0.00019178,2]
[364801971,1749246632991,-440.0,0.00019178,2]
[364801973,1749246633001,-262.24683689,0.00019178,2]
[364801975,1749246633010,-173.43817676,0.00019178,2]
[364801977,1749246633021,-266.56182324,0.00019178,2]
[364801979,1749246633032,-273.11561403,0.00019178,2]
[364801981,1749246633041,-14.15319316,0.00019178,2]